bitfinex/quotes_ETHUSD_20240715
["timestamp","ask_amount","ask_price","bid_price","bid_amount"]
[1721062163422,2.7564,3396.3,3394.9,3.0]
[1721062163748,0.07362727,3396.2,3395.0,2.94543]
[1721062163948,0.28300273,3396.1,3395.0,2.94543]
[1721062164149,2.7564,3396.3,3395.0,2.94543]
[1721062164461,2.4614,3396.3,3395.4,2.94511]
[1721062164610,0.07361878,3396.2,3394.9,3.0]
[1721062164809,0.07361878,3396.2,3395.2,2.94532]
[1721062165013,6.0817,3396.1,3394.7,3.0]
[1721062165209,2.4287,3395.8,3394.4,2.94596]
[1721062165515,0.07363793,3395.7,3394.2,2.94613]
[1721062165747,3.07363793,3395.7,3394.2,2.94613]
[1721062165960,3.07363793,3395.7,3394.4,2.94602]
[1721062166107,3.07363793,3395.7,3394.5,2.94592]
[1721062166308,0.86053379,3395.6,3394.5,2.94592]
[1721062166655,0.07363788,3395.5,3394.5,2.94592]
[1721062166856,2.329,3395.4,3393.5,0.39506209]
[1721062167052,5.432,3395.1,3393.6,2.9467]
[1721062167202,5.432,3394.8,3393.2,2.94705]
[1721062167407,3.62366264,3394.7,3393.3,2.94695]
[1721062167639,3.55,3394.7,3393.4,2.94689]
[1721062167986,3.0,3394.7,3393.7,2.94663]
[1721062168275,2.329,3394.8,3393.5,2.9468]
[1721062168476,2.329,3394.8,3394.0,2.94631]
[1721062169038,2.329,3394.8,3393.7,2.94659]
[1721062169287,2.3889,3395.3,3394.4,2.94601]
[1721062169488,2.3889,3395.3,3394.6,2.94579]
[1721062170140,0.07363649,3395.2,3394.2,2.94616]
[1721062170578,0.07363649,3395.2,3394.2,5.8923]
[1721062170789,0.07363649,3395.2,3394.2,2.94614]
[1721062170952,0.31989014,3395.2,3394.0,2.94636]
[1721062171167,0.31989014,3395.2,3394.1,3.0]
[1721062171670,0.61489014,3395.2,3394.1,3.0]
[1721062171846,0.54125365,3395.2,3394.1,3.0]
[1721062172044,0.295,3395.2,3394.1,5.94626]
[1721062172278,2.3889,3395.3,3394.1,5.94626]
[1721062172441,2.3889,3395.3,3394.1,3.0]
[1721062172645,2.3889,3395.3,3394.8,2.94566]
[1721062172951,2.3889,3395.3,3394.7,2.94575]
[1721062173185,2.3889,3395.3,3394.5,2.9459]
[1721062173682,2.3889,3395.3,3394.6,2.94585]
[1721062174668,2.3889,3395.3,3394.8,2.94567]
[1721062176668,2.3889,3395.3,3394.9,2.94558]
[1721062177275,2.4889,3395.8,3394.9,2.94558]
[1721062177686,2.4889,3395.8,3394.8,2.94567]
[1721062177984,5.5919,3395.6,3394.4,2.94602]
[1721062178353,2.7839,3395.6,3394.6,2.94584]
[1721062178557,2.7839,3395.6,3394.4,2.94602]
[1721062178757,0.47992267,3395.5,3394.4,2.94602]
[1721062178968,0.406279,3395.5,3394.4,2.94602]
[1721062179292,0.07364365,3395.4,3394.4,2.94602]
[1721062179493,0.07364365,3395.4,3394.2,2.94616]
[1721062179798,0.07364365,3395.4,3393.1,10.34713]
[1721062179799,3.398,3394.8,3393.1,10.34713]
[1721062180093,5.511,3394.6,3393.1,2.94708]
[1721062180261,5.3629,3394.4,3393.0,2.94722]
[1721062180463,0.0736695,3394.3,3393.1,2.94713]
[1721062180793,0.07366945,3394.2,3393.1,2.94713]
[1721062181599,0.07366945,3394.2,3392.8,2.9474]
[1721062181775,2.8675,3394.1,3392.7,2.9475]
[1721062181975,3.103,3393.8,3392.5,2.94761]
[1721062182488,3.103,3393.8,3392.6,2.94756]
[1721062182678,3.103,3393.8,3391.9,6.35114]
[1721062182679,2.3175,3393.9,3392.9,2.94724]
[1721062182882,2.85955,3393.9,3392.9,2.94724]
[1721062183094,2.3175,3393.9,3393.0,0.05893971]
[1721062183274,2.3175,3393.9,3393.2,2.94706]
[1721062183665,2.3175,3393.9,3393.3,2.94691]
[1721062184167,2.3175,3393.9,3393.4,2.94689]
[1721062185167,2.3889,3394.4,3393.4,2.94689]
[1721062185400,0.56839,3394.3,3393.4,2.94689]
[1721062186101,3.56839,3394.3,3393.4,2.94689]
[1721062186297,2.3889,3394.4,3393.6,2.94665]
[1721062186603,2.3889,3394.4,3393.8,2.94647]
[1721062186805,2.4275,3395.1,3394.2,2.94619]
[1721062187009,2.4275,3395.1,3394.4,2.94601]
[1721062187178,2.4275,3395.1,3394.5,2.94592]
[1721062187581,2.4275,3395.1,3394.2,2.94618]
[1721062187779,2.4275,3395.1,3394.3,2.94611]
[1721062188179,2.4275,3395.1,3394.4,2.94597]
[1721062190208,2.4275,3395.1,3394.2,2.94617]
[1721062190716,2.4275,3395.1,3394.3,2.94611]
[1721062190870,2.4275,3395.1,3394.0,2.94636]
[1721062191471,2.4275,3395.1,3394.2,2.94616]
[1721062191702,2.4093,3395.6,3394.9,2.94557]
[1721062191973,2.4093,3395.6,3395.0,3.0043442]
[1721062192730,2.4579,3396.6,3395.3,2.94522]
[1721062192951,0.36861677,3396.5,3395.3,2.94522]
[1721062194393,5.5609,3396.6,3395.3,2.94522]
[1721062194740,0.845,3396.5,3395.3,2.94522]
[1721062195323,3.0,3396.5,3395.7,2.94482]
[1721062195527,0.61940382,3396.4,3395.1,2.94536]
[1721062195825,0.61940382,3396.4,3395.2,2.94532]
[1721062196494,2.4579,3396.6,3395.8,2.94475]
[1721062196690,2.4579,3396.6,3394.7,3.0]
[1721062196892,0.07362489,3396.5,3395.2,2.94527]
[1721062197193,2.4579,3396.6,3395.2,2.94527]
[1721062197405,3.103,3396.5,3395.2,2.94527]
[1721062197607,0.85109,3396.4,3395.2,2.94527]
[1721062198234,3.85109,3396.4,3395.2,2.94527]
[1721062198409,0.07362485,3396.3,3395.2,2.94527]
[1721062198740,3.85109,3396.4,3395.2,2.94527]
[1721062198741,0.07362484,3396.2,3395.2,2.94527]
[1721062199399,3.85109,3396.4,3395.2,2.94527]
[1721062199600,0.941199,3396.3,3395.2,2.94527]
[1721062199800,0.941199,3396.3,3395.1,2.94542]
[1721062200027,0.941199,3396.3,3395.2,2.94532]
[1721062200501,0.0736248,3396.2,3395.2,2.94532]
[1721062200935,2.4579,3396.6,3395.6,2.94497]
[1721062201097,2.4579,3396.6,3396.1,2.94454]
[1721062201298,2.347,3397.6,3396.3,2.94436]
[1721062201526,0.2347,3397.5,3396.3,2.94436]
[1721062202035,0.2347,3397.5,3396.0,2.94458]
[1721062202036,5.4998,3397.3,3396.0,2.94458]
[1721062202242,0.0736074,3397.2,3395.7,2.94487]
[1721062202394,3.398,3397.1,3395.8,3.0]
[1721062202599,3.948,3397.1,3395.8,5.94478]
[1721062202832,0.295,3396.9,3395.8,5.94478]
[1721062203018,0.36861214,3396.8,3395.8,5.94478]
[1721062203412,2.3535,3396.6,3395.6,2.94496]
[1721062203639,0.07361673,3396.5,3395.5,2.94507]
[1721062203865,2.3535,3396.6,3395.6,2.94498]
[1721062204141,2.92865,3396.6,3395.7,2.94489]
[1721062205199,2.3535,3396.6,3396.0,2.94461]
[1721062205929,2.3535,3396.6,3395.8,2.9448]
[1721062206117,2.3535,3396.6,3396.1,2.94455]
[1721062206835,2.3971,3397.3,3395.3,2.94519]
[1721062207039,2.3971,3397.3,3396.3,2.94432]
[1721062207336,0.56318,3397.2,3396.3,2.94432]
[1721062207502,3.56318,3397.2,3396.3,2.94432]
[1721062207699,3.56318,3397.2,3396.4,2.94428]
[1721062208103,0.56318,3397.2,3396.4,2.94428]
[1721062208309,2.3971,3397.3,3396.5,2.9442]
[1721062210127,2.3971,3397.3,3396.8,2.94393]
[1721062211002,2.3971,3397.3,3396.5,2.9442]
[1721062211242,0.07359312,3397.2,3396.2,2.94446]
[1721062211457,2.3971,3397.3,3396.2,2.94446]
[1721062211660,0.26318,3397.2,3396.4,2.94427]
[1721062212244,0.26318,3397.2,3395.9,2.94472]
[1721062212446,2.3971,3397.3,3396.6,2.94411]
[1721062212672,2.4677,3397.7,3396.8,2.94393]
[1721062212862,2.4677,3397.7,3396.9,2.94386]
[1721062213423,2.4677,3397.7,3397.0,2.94375]
[1721062213629,2.4677,3397.7,3397.1,2.94368]
[1721062214044,3.0,3398.7,3397.1,2.94368]
[1721062214045,2.3296,3398.6,3397.1,2.94368]
[1721062214365,2.3296,3398.6,3396.4,5.36973]
[1721062214366,0.56246,3398.5,3397.3,2.94349]
[1721062214563,3.56246,3398.5,3397.4,2.94341]
[1721062215063,0.56246,3398.5,3397.4,2.94341]
[1721062215358,5.4326,3398.6,3397.4,2.94341]
[1721062216222,2.3296,3398.6,3397.5,2.94332]
[1721062216433,2.3296,3398.6,3397.7,2.94314]
[1721062216657,2.3296,3398.6,3397.8,2.94306]
[1721062216973,2.3296,3398.6,3397.9,2.94298]
[1721062217268,0.30653119,3398.5,3397.6,2.94325]
[1721062218439,0.23296,3398.5,3397.6,2.94325]
[1721062218643,2.3296,3398.6,3397.7,2.94315]
[1721062218849,2.3296,3398.6,3397.8,0.05885692]
[1721062219265,2.3315,3399.1,3397.9,0.05885445]
[1721062219436,2.3315,3399.1,3397.1,2.4352]
[1721062219437,2.3315,3399.1,3397.2,0.05884628]
[1721062219662,2.3315,3399.1,3398.4,2.94256]
[1721062219864,2.56465,3399.1,3398.4,2.94256]
[1721062220473,2.56465,3399.1,3398.1,2.94275]
[1721062220474,0.07354886,3399.6,3398.7,2.94228]
[1721062220654,0.07354886,3399.6,3398.3,2.94263]
[1721062220969,0.07354886,3399.6,3398.5,2.9424]
[1721062221152,0.07354886,3399.6,3398.3,2.9426]
[1721062221358,0.24445489,3399.5,3398.3,2.9426]
[1721062221538,0.07355683,3399.4,3397.9,2.94298]
[1721062221740,0.295,3398.9,3396.7,2.94402]
[1721062221939,0.295,3398.9,3396.5,2.3129]
[1721062221940,0.295,3398.7,3396.5,2.3129]
[1721062222146,0.07357132,3398.6,3397.6,2.94323]
[1721062222347,0.33685713,3398.6,3397.7,2.94316]
[1721062222573,0.33685713,3398.6,3396.7,2.94403]
[1721062222774,0.0735681,3398.5,3397.4,2.94341]
[1721062223060,0.0735681,3398.5,3397.5,2.94332]
[1721062223529,0.295,3398.8,3397.4,2.94341]
[1721062223530,0.295,3398.8,3397.6,2.94323]
[1721062223766,1.16946,3398.8,3397.6,2.94323]
[1721062224275,0.87446,3398.8,3397.7,2.94311]
[1721062224772,0.87446,3398.8,3391.2,5.53966643]
[1721062224773,3.103,3398.7,3397.2,2.94353]
[1721062225075,3.55,3398.6,3397.3,2.94348]
[1721062225369,0.0735767,3398.5,3397.3,2.94348]
[1721062225563,0.70215767,3398.4,3397.3,2.94348]
[1721062225765,0.0735767,3398.3,3397.3,2.94348]
[1721062226380,0.0735767,3398.3,3397.2,2.94353]
[1721062226583,2.52307665,3398.2,3396.9,2.94377]
[1721062226884,0.32252343,3398.1,3396.7,2.94397]
[1721062227177,0.07358574,3398.0,3396.7,2.94397]
[1721062227876,0.295,3397.8,3396.5,2.94415]
[1721062228077,0.07359266,3397.7,3396.5,2.94415]
[1721062228589,2.3533,3397.6,3396.1,2.94452]
[1721062228748,0.07359813,3397.5,3396.2,2.94441]
[1721062228952,2.3533,3397.6,3396.1,2.94452]
[1721062229143,2.3533,3397.6,3396.5,2.94412]
[1721062229349,2.3533,3397.6,3396.7,2.94396]
[1721062229765,2.3533,3397.6,3396.6,2.94411]
[1721062230679,0.295,3397.8,3397.0,2.9437]
[1721062230978,0.295,3398.1,3397.0,2.9437]
[1721062231394,0.295,3398.1,3396.3,3.0]
[1721062231395,0.64061765,3398.1,3396.3,3.0]
[1721062231691,0.07358761,3398.0,3396.7,2.94402]
[1721062231980,0.07358761,3398.0,3396.0,5.39098]
[1721062231981,9.01416247,3397.9,3396.0,2.94463]
[1721062232145,3.103,3397.7,3396.1,3.0]
[1721062232345,0.62359802,3397.6,3396.2,2.9444]
[1721062232776,0.55,3397.6,3396.2,2.9444]
[1721062232981,3.55,3397.7,3396.3,2.94432]
[1721062233144,0.55,3397.7,3396.3,2.94432]
[1721062233344,1.65216415,3397.7,3396.3,2.94432]
[1721062233564,0.07359732,3397.6,3396.1,3.0]
[1721062233795,1.65216415,3397.7,3396.2,2.94439]
[1721062233943,4.10216415,3397.7,3396.4,2.94423]
[1721062234148,1.10216415,3397.7,3396.6,2.9441]
[1721062234548,1.17575542,3397.7,3396.6,2.9441]
[1721062234760,0.69859179,3397.6,3396.6,2.9441]
[1721062234983,3.295,3397.8,3396.6,2.9441]
[1721062235213,2.51516247,3397.9,3396.8,2.94393]
[1721062236144,2.51516247,3397.9,3396.4,2.3022]
[1721062236145,2.51516247,3397.9,3397.2,2.94357]
[1721062236347,2.51516247,3397.9,3397.3,2.9435]
[1721062236566,2.4646,3397.9,3397.3,2.9435]
[1721062236773,0.05020127,3397.8,3397.3,2.9435]
[1721062236979,0.05020127,3397.8,3397.7,2.94316]
[1721062237348,0.07356489,3398.8,3397.7,2.94316]
[1721062237550,0.04893302,3398.7,3397.8,2.94305]
[1721062238075,0.12249756,3398.7,3397.8,2.94305]
[1721062238385,0.12249756,3398.7,3397.4,2.94341]
[1721062238761,0.04893302,3398.7,3396.7,3.0]
[1721062238950,2.7819,3398.9,3397.5,2.94328]
[1721062239150,2.3067,3398.7,3397.2,2.94358]
[1721062239350,2.3067,3398.7,3397.0,3.0]
[1721062239351,2.583,3398.5,3397.0,3.0]
[1721062239583,4.07051721,3398.4,3396.9,5.9438]
[1721062240251,3.99693405,3398.4,3396.9,5.9438]
[1721062240886,0.07358311,3398.3,3396.9,5.9438]
[1721062241188,3.99693405,3398.4,3397.0,2.94376]
[1721062241189,0.59882355,3398.2,3397.0,2.94376]
[1721062241501,0.04882355,3398.2,3397.3,2.94349]
[1721062241849,0.295,3398.4,3397.3,2.94349]
[1721062242056,0.04875244,3398.1,3397.3,2.94349]
[1721062242250,0.04887768,3398.3,3397.3,2.94349]
[1721062242495,0.295,3398.4,3397.3,2.94349]
[1721062242695,0.04881506,3398.2,3397.3,2.94349]
[1721062242927,0.04887768,3398.3,3397.3,2.94349]
[1721062243236,0.04881506,3398.2,3397.3,2.94349]
[1721062243429,0.04881506,3398.2,3397.5,2.94328]
[1721062243626,0.295,3398.4,3397.5,2.94328]
[1721062243850,0.04875244,3398.1,3397.3,2.94344]
[1721062244019,0.295,3398.4,3397.3,2.94344]
[1721062244188,0.04868982,3398.0,3397.3,2.94344]
[1721062244393,0.295,3398.4,3397.4,2.94341]
[1721062244594,0.04862719,3397.9,3397.5,2.94334]
[1721062244794,0.295,3398.4,3397.5,2.94334]
[1721062245012,0.04856857,3397.8,3397.5,2.94334]
[1721062245343,0.295,3398.4,3397.5,2.94334]
[1721062245508,0.88187651,3398.3,3396.9,5.94382]
[1721062245838,0.0735831,3398.2,3396.9,3.0]
[1721062246051,0.55,3398.1,3396.9,2.94379]
[1721062246211,0.07358303,3398.0,3397.0,3.0]
[1721062246410,0.55,3397.9,3397.0,3.0]
[1721062246621,0.59900093,3397.9,3397.0,3.0]
[1721062248125,0.59900093,3397.9,3397.0,5.94374]
[1721062248324,0.04900093,3397.9,3397.0,5.94374]
[1721062248729,0.2583,3398.3,3397.0,5.94374]
[1721062248935,0.04893831,3397.8,3397.0,5.94374]
[1721062249132,0.55,3398.2,3397.0,5.94374]
[1721062249334,0.04887569,3397.7,3397.0,5.94374]
[1721062249539,0.07358293,3398.1,3397.0,5.94374]
[1721062249742,0.55,3398.0,3397.0,3.0]
[1721062249968,2.40368299,3397.9,3396.5,2.94416]
[1721062250099,2.40368299,3397.9,3396.2,2.94446]
[1721062250100,2.3301,3397.7,3396.2,2.94446]
[1721062250297,2.3301,3397.7,3395.2,2.94526]
[1721062250298,3.103,3397.4,3396.0,2.94461]
[1721062250610,0.67222197,3397.3,3396.0,2.94461]
[1721062250833,2.3301,3397.1,3396.0,2.94461]
[1721062251030,0.62360528,3397.0,3396.0,2.94461]
[1721062251234,0.04842874,3397.0,3396.3,2.94431]
[1721062251455,0.04842874,3397.0,3396.4,0.05887722]
[1721062251738,0.04842874,3397.0,3396.5,0.05887594]
[1721062251938,2.3033,3397.6,3396.7,2.94403]
[1721062252099,0.04794862,3396.9,3396.8,0.05887083]
[1721062252304,2.3033,3397.6,3396.8,0.05887083]
[1721062252501,2.3033,3397.6,3396.7,2.94403]
[1721062252744,2.3033,3397.6,3396.8,3.00279275]
[1721062252942,0.048166,3397.5,3396.8,2.94392]
[1721062253141,0.048166,3397.5,3396.7,2.944]
[1721062253348,2.3033,3397.6,3396.7,2.944]
[1721062253523,2.3033,3397.6,3396.9,2.9438]
[1721062253725,0.0483469,3397.5,3396.9,2.9438]
[1721062253926,0.0483469,3397.5,3397.0,2.94371]
[1721062254123,2.3033,3397.6,3397.0,2.94371]
[1721062255133,0.04835092,3397.5,3396.8,2.94388]
[1721062255359,2.3033,3397.6,3397.0,2.94373]
[1721062255525,0.04845576,3397.4,3397.0,2.94373]
[1721062255715,2.3033,3397.6,3396.8,2.94391]
[1721062256034,2.3033,3397.6,3396.6,2.94407]
[1721062256239,2.54098862,3397.6,3396.6,2.94407]
[1721062256589,0.0485184,3397.5,3396.6,2.94407]
[1721062256857,0.0485184,3397.5,3396.5,3.0]
[1721062257063,0.0485184,3397.5,3396.5,5.94415]
[1721062257847,0.0485184,3397.5,3396.6,2.94412]
[1721062258659,0.381062,3397.5,3396.4,2.94422]
[1721062258865,0.55,3397.4,3396.4,2.94422]
[1721062259159,2.49479976,3397.3,3395.9,2.94472]
[1721062259356,0.97502689,3397.2,3395.9,2.94472]
[1721062259519,0.62360512,3397.1,3395.7,2.94483]
[1721062259714,0.67216776,3397.1,3395.7,2.94481]
[1721062260427,5.4696,3397.0,3395.5,2.94505]
[1721062260635,0.04856264,3397.1,3395.7,2.94489]
[1721062260835,2.3666,3397.4,3397.0,2.94377]
[1721062261350,2.3666,3397.4,3396.8,2.94392]
[1721062261658,2.3666,3397.4,3396.8,2.94389]
[1721062261863,2.304,3398.1,3396.9,3.00265895]
[1721062262021,0.55,3398.0,3396.9,3.00265895]
[1721062262354,2.304,3398.1,3397.3,2.9435]
[1721062262559,2.304,3398.1,3397.6,2.94323]
[1721062263035,2.304,3398.1,3397.0,2.94371]
[1721062263232,0.07358163,3398.0,3396.6,2.94409]
[1721062263572,2.4055,3397.8,3396.4,2.94423]
[1721062263865,0.11885601,3397.7,3396.4,2.94423]
[1721062264047,0.11885601,3397.7,3396.5,2.9442]
[1721062264270,0.55,3397.6,3396.5,2.9442]
[1721062264434,0.07359376,3397.5,3396.5,2.9442]
[1721062264638,0.11873038,3397.5,3396.5,2.9442]
[1721062264863,0.04513662,3397.5,3396.5,2.9442]
[1721062265172,0.04513662,3397.5,3396.4,2.9442]
[1721062265173,0.11873038,3397.5,3396.4,2.9442]
[1721062265343,2.8247,3397.4,3396.1,3.0]
[1721062265549,0.04514532,3397.3,3396.1,3.0]
[1721062265765,0.04514532,3397.3,3396.2,2.94445]
[1721062266284,0.04514532,3397.3,3396.1,5.94452]
[1721062266285,0.07360396,3397.2,3396.1,5.94452]
[1721062266442,0.55,3397.1,3396.1,2.94452]
[1721062266775,0.55,3397.1,3395.9,2.94471]
[1721062266776,0.11856133,3397.0,3395.9,2.94471]
[1721062266949,0.11856133,3397.0,3396.0,3.0]
[1721062267486,0.11856133,3397.0,3396.0,5.94463]
[1721062267640,0.04495738,3397.0,3396.1,2.94451]
[1721062268181,0.55,3397.3,3396.1,2.94451]
[1721062268366,0.04508268,3397.2,3396.1,2.94451]
[1721062268569,0.04508268,3397.2,3396.2,0.05888314]
[1721062268756,2.2747,3397.4,3396.7,2.94395]
[1721062269079,0.04495283,3397.3,3396.5,2.94415]
[1721062269281,0.04495283,3397.3,3396.6,2.94411]
[1721062269481,2.2747,3397.4,3396.6,2.94411]
[1721062269663,0.04347724,3397.2,3396.4,5.88847]
[1721062269991,0.30541267,3397.2,3396.1,3.0]
[1721062270192,0.30541267,3397.2,3396.2,3.0]
[1721062270347,0.55,3397.1,3396.2,3.0]
[1721062270540,0.07360406,3397.0,3396.2,3.0]
[1721062271047,0.62360406,3397.1,3396.2,3.0]
[1721062271453,2.372,3397.0,3395.8,2.94479]
[1721062271660,2.372,3397.0,3395.2,2.94532]
[1721062271661,5.5765,3396.8,3395.2,2.94528]
[1721062271867,0.07361923,3396.7,3395.3,2.94524]
[1721062272080,0.55,3396.6,3395.4,2.94514]
[1721062272464,0.04314632,3396.5,3395.4,2.94514]
[1721062273603,0.04314632,3396.5,3395.5,2.94507]
[1721062273894,2.4735,3396.8,3395.9,2.94471]
[1721062274051,0.04278937,3396.4,3395.9,2.94471]
[1721062274251,2.4735,3396.8,3395.9,2.94471]
[1721062274452,2.4735,3396.8,3396.0,2.94461]
[1721062274684,0.04297739,3396.7,3396.0,3.0034959]
[1721062275082,2.4735,3396.8,3396.0,3.0034959]
[1721062275795,2.4735,3396.8,3396.1,2.94453]
[1721062276149,0.2304,3398.1,3395.7,3.0]
[1721062276150,2.4953,3397.5,3396.9,2.9438]
[1721062276354,2.4953,3397.5,3397.0,2.94377]
[1721062276699,0.04134252,3397.4,3397.0,2.94377]
[1721062276893,0.04134252,3397.4,3397.0,3.00264012]
[1721062277200,0.04134252,3397.4,3397.1,2.94368]
[1721062277399,2.4953,3398.0,3397.4,2.94335]
[1721062277569,2.74483,3398.0,3397.2,2.94355]
[1721062277901,0.11563956,3397.9,3396.7,2.94401]
[1721062278254,0.11563956,3397.9,3396.6,5.94411]
[1721062278495,0.11563956,3397.9,3395.7,9.8174]
[1721062278688,0.11563956,3397.9,3396.3,2.94432]
[1721062278689,3.103,3397.7,3396.3,2.94432]
[1721062278956,3.103,3397.7,3396.1,2.94448]
[1721062278957,2.2708,3397.5,3396.1,2.94448]
[1721062279211,5.3738,3397.2,3395.9,3.0]
[1721062279362,0.07361088,3397.1,3395.9,5.94472]
[1721062279565,0.59192938,3397.0,3395.9,2.94472]
[1721062279923,3.17661088,3396.9,3395.5,2.94506]
[1721062280200,3.30177488,3396.8,3395.6,2.94497]
[1721062281072,3.30177488,3396.8,3395.7,2.94489]
[1721062281272,3.30177488,3396.8,3395.8,2.94475]
[1721062282024,3.30177488,3396.8,3395.9,2.94472]
[1721062282499,3.30177488,3396.8,3395.7,2.94489]
[1721062282700,0.33017749,3396.7,3395.1,3.0]
[1721062282929,0.55,3396.6,3395.4,2.94515]
[1721062283200,0.59169555,3396.6,3395.5,2.94506]
[1721062283400,0.73266479,3396.5,3395.5,2.94506]
[1721062283705,0.59157021,3396.4,3395.5,2.94506]
[1721062284673,0.07361915,3396.3,3395.5,2.94506]
[1721062285097,0.04140113,3396.2,3395.5,2.94506]
[1721062285273,2.4688,3396.1,3395.3,2.94524]
[1721062285492,2.4688,3396.1,3395.4,3.0]
[1721062285697,0.04127577,3396.0,3395.4,3.0]
[1721062285871,0.04127577,3396.0,3395.4,5.94515]
[1721062286205,0.04127577,3396.0,3395.5,2.94503]
[1721062286591,0.04127577,3396.0,3395.4,3.0]
[1721062286820,0.04127577,3396.0,3395.4,5.94514]
[1721062287132,0.04127577,3396.0,3395.5,2.94507]
[1721062287315,0.04127577,3396.0,3395.6,2.94498]
[1721062287525,0.04127577,3396.0,3395.4,3.0]
[1721062287526,0.04127577,3396.0,3395.9,2.94472]
[1721062287693,0.04127577,3396.0,3395.9,5.88944]
[1721062287892,0.04127577,3396.0,3395.9,8.88944]
[1721062288110,2.3985,3397.0,3396.4,2.94428]
[1721062288506,0.04121293,3396.5,3396.2,2.9444]
[1721062288715,2.3985,3397.0,3396.2,2.9444]
[1721062289030,0.62360349,3396.9,3395.9,3.0]
[1721062289193,0.62360349,3396.9,3395.8,2.94479]
[1721062289395,0.62360349,3396.9,3396.0,2.94462]
[1721062289595,0.62360349,3396.9,3395.4,3.0]
[1721062289795,0.62360349,3396.9,3395.7,2.94483]
[1721062290031,0.39993138,3396.8,3395.9,2.94466]
[1721062290629,0.0736106,3396.7,3395.7,2.94483]
[1721062290932,0.55,3396.6,3395.6,2.94493]
[1721062291099,0.55,3396.6,3395.6,2.94497]
[1721062291300,3.37571034,3397.0,3395.5,2.94505]
[1721062291525,0.55,3396.9,3396.1,2.94448]
[1721062291829,0.42207103,3396.8,3396.1,2.94448]
[1721062292133,0.46351771,3396.8,3396.1,2.94448]
[1721062294098,0.46351771,3396.8,3396.2,2.94445]
[1721062294303,0.04144668,3396.8,3396.2,2.94445]
[1721062294615,3.37571034,3397.0,3396.2,2.94445]
[1721062295004,2.3985,3397.0,3396.4,2.94423]
[1721062295207,2.3985,3397.0,3396.5,2.94418]
[1721062295627,0.03970864,3396.9,3396.5,2.94418]
[1721062295941,0.03970864,3396.9,3396.4,2.94427]
[1721062296703,0.03970864,3396.9,3396.3,2.94437]
[1721062296903,0.03970864,3396.9,3396.4,2.94423]
[1721062297337,0.03970864,3396.9,3396.2,2.94446]
[1721062297501,0.03970864,3396.9,3396.3,2.94432]
[1721062297705,0.03970864,3396.9,3396.4,2.94428]
[1721062298007,0.03970864,3396.9,3396.2,2.94439]
[1721062298324,0.11331362,3396.9,3396.2,2.94439]
[1721062298743,0.36449498,3396.9,3396.0,2.94462]
[1721062298960,0.36449498,3396.9,3396.1,2.94454]
[1721062299307,0.03970864,3396.9,3396.1,2.94454]
[1721062299842,0.11331595,3396.9,3396.1,2.94454]
[1721062300229,5.5654,3396.8,3395.3,2.94522]
[1721062300430,0.07362185,3396.7,3395.4,2.94515]
[1721062300607,0.55,3396.6,3395.4,2.94515]
[1721062300812,2.57602459,3396.5,3395.4,2.94515]
[1721062301008,0.55,3396.4,3395.4,2.94515]
[1721062301251,0.03987762,3396.3,3395.4,2.94515]
[1721062301458,0.03987762,3396.3,3395.2,2.94532]
[1721062301459,0.03987762,3396.3,3395.7,2.94485]
[1721062301741,2.4624,3396.5,3395.8,2.94475]
[1721062301947,0.03979554,3396.2,3395.8,2.94475]
[1721062302123,2.4624,3396.5,3395.8,2.94475]
[1721062302324,2.4624,3396.5,3395.9,2.94471]
[1721062302642,0.0399209,3396.4,3396.1,2.94449]
[1721062302843,2.4624,3396.5,3396.1,2.94449]
[1721062303010,9.659,3397.0,3396.3,2.94433]
[1721062303211,0.04023284,3396.9,3396.3,2.94433]
[1721062305145,0.04023284,3396.9,3396.5,2.94419]
[1721062305355,0.04023284,3396.9,3396.6,2.9441]
[1721062305557,2.4468,3397.3,3396.6,2.9441]
[1721062305850,2.4468,3397.3,3396.4,2.94423]
[1721062306155,2.4468,3397.3,3396.3,2.94435]
[1721062306156,0.31444947,3397.2,3396.3,2.94435]
[1721062306447,0.31444947,3397.2,3395.6,5.9449]
[1721062306448,0.38804798,3397.2,3396.0,2.94463]
[1721062306655,0.55,3397.1,3396.1,2.94452]
[1721062306837,0.5902145,3397.1,3396.1,2.94452]
[1721062307037,0.55,3397.0,3396.1,2.94452]
[1721062307258,0.04015184,3397.0,3396.1,2.94452]
[1721062307424,0.55,3397.2,3396.1,2.94452]
[1721062307818,0.0402145,3397.1,3396.1,2.94452]
[1721062308020,0.34391595,3397.1,3396.1,2.94452]
[1721062308324,0.55,3397.0,3396.1,2.94452]
[1721062308547,0.59015184,3397.0,3396.1,2.94452]
[1721062309126,0.59015184,3397.0,3396.4,2.94428]
[1721062309328,0.04015184,3397.0,3396.4,2.94428]
[1721062310560,0.04015184,3397.0,3396.6,2.94408]
[1721062310947,2.4468,3397.3,3396.6,2.94408]
[1721062311144,0.03992153,3396.9,3396.7,2.94402]
[1721062311353,2.4468,3397.3,3396.7,2.94402]
[1721062311567,2.4468,3397.3,3396.7,3.00289782]
[1721062311729,0.04010951,3397.2,3396.7,3.00289782]
[1721062311923,0.04010951,3397.2,3396.7,2.94402]
[1721062312129,0.04010951,3397.2,3396.9,2.94385]
[1721062312440,2.4468,3397.3,3396.9,2.94385]
[1721062312647,0.04004686,3397.1,3396.9,2.94385]
[1721062312853,9.7415,3397.8,3396.9,2.94385]
[1721062313163,0.55,3397.7,3396.9,2.94385]
[1721062313331,0.59023677,3397.7,3396.9,2.94385]
[1721062314139,0.07359233,3397.6,3396.7,2.94402]
[1721062314426,0.04020485,3397.5,3396.8,2.94392]
[1721062314629,1.18109957,3397.5,3396.8,2.94392]
[1721062314824,0.07359241,3397.4,3396.5,2.94417]